fUST/lending_fUST_20240120
["ID","MTS","AMOUNT","RATE_DAILY","PERIOD"]
[312184488,1705683040129,-713.7,0.00027945,2]
[312184489,1705683040139,-500.0,0.00027945,2]
[312184490,1705683040148,-500.0,0.00027945,2]
[312184491,1705683040157,-573.19967507,0.00027945,2]
[312184492,1705683040165,-1098.42,0.00027945,2]
[312184493,1705683040174,-500.0,0.00027945,2]
[312184494,1705683040183,-1294.79,0.00027945,2]
[312184495,1705683040192,-973.99,0.00027945,2]
[312184496,1705683040267,-532.96,0.00027945,2]
[312184498,1705683040277,-2995.83,0.00027945,2]
[312184500,1705683040286,-500.0,0.00027945,2]
[312184502,1705683040295,-500.0,0.00027945,2]
[312184503,1705683040304,-617.02,0.00027945,2]
[312184505,1705683040313,-505.34,0.00027945,2]
[312184507,1705683040322,-290.08228321,0.00028,2]
[312184509,1705683040330,-154.84515485,0.00028,10]
[312184511,1705683040340,-54792.97642703,0.00028,2]
[312184513,1705683040349,-500.0,0.00028219,2]
[312184515,1705683040358,-500.0,0.00028219,2]
[312184517,1705683040368,-500.0,0.00028219,2]
[312184519,1705683040377,-500.0,0.00028219,2]
[312184521,1705683040388,-500.0,0.00028219,2]
[312184524,1705683040397,-500.0,0.00028219,2]
[312184525,1705683040406,-628.4,0.00028219,2]
[312184528,1705683040416,-1069.01,0.00028219,2]
[312184530,1705683040426,-574.17,0.00028219,2]
[312184532,1705683040435,-500.0,0.00028219,2]
[312184534,1705683040444,-641.10496849,0.00028219,2]
[312184535,1705683040453,-500.0,0.00028219,2]
[312184537,1705683040462,-1625.91,0.00028219,2]
[312184539,1705683040471,-500.0,0.00028219,2]
[312184541,1705683040480,-345.95410077,0.00028219,2]
[312184543,1705683040489,-503.61,0.00028219,2]
[312184545,1705683040499,-500.0,0.00028219,2]
[312184547,1705683040511,-500.0,0.00028219,2]
[312184549,1705683040520,-616.62,0.00028219,2]
[312184551,1705683040529,-840.94,0.00028219,2]
[312184553,1705683040538,-500.0,0.00028219,2]
[312184555,1705683040547,-500.0,0.00028219,2]
[312184557,1705683040557,-500.0,0.00028219,2]
[312184559,1705683040566,-500.0,0.00028219,2]
[312184561,1705683040576,-186.61271067,0.00028219,2]
[312184563,1705683040586,-937.4,0.00028219,2]
[312184565,1705683040596,-500.0,0.00028219,2]
[312184567,1705683040606,-500.0,0.00028219,2]
[312184568,1705683040615,-618.13,0.00028219,2]
[312184569,1705683040624,-500.0,0.00028219,2]
[312184570,1705683040636,-641.85,0.00028219,2]
[312184571,1705683040645,-723.91,0.00028219,2]
[312184572,1705683040654,-3128.69,0.00028219,2]
[312184573,1705683040664,-6323.53,0.00028219,2]
[312184574,1705683040674,-3238.26,0.00028219,2]
[312184575,1705683040683,-796.86,0.00028219,2]
[312184576,1705683040692,-1382.89,0.00028219,2]
[312184577,1705683040701,-653.13,0.00028219,2]
[312184578,1705683040711,-500.0,0.00028219,2]
[312184579,1705683040720,-2456.14,0.00028219,2]
[312184580,1705683040729,-8378.99,0.00028219,2]
[312184581,1705683040739,-500.0,0.00028219,2]
[312184582,1705683040748,-158.800169,0.00028219,2]
[312184583,1705683040759,-500.0,0.00028219,2]
[312184584,1705683040770,-11697.4,0.00028219,2]
[312184585,1705683040779,-541.69,0.00028219,2]
[312184586,1705683040788,-713.7,0.00028219,2]
[312184587,1705683040797,-500.0,0.00028219,2]
[312184588,1705683040807,-337.75,0.00028219,2]
[312184589,1705683040816,-1098.42,0.00028219,2]
[312184590,1705683040825,-500.0,0.00028219,2]
[312184591,1705683040834,-1294.79,0.00028219,2]
[312184592,1705683040843,-973.99,0.00028219,2]
[312184593,1705683040852,-2995.83,0.00028219,2]
[312184594,1705683040862,-500.0,0.00028219,2]
[312184595,1705683040871,-500.0,0.00028219,2]
[312184596,1705683040881,-617.02,0.00028219,2]
[312184597,1705683040890,-505.34,0.00028219,2]
[312184598,1705683040899,-307.5351148,0.00028219,2]
[312184599,1705683040908,-153.0,0.00028219,2]
[312184600,1705683040917,-153.0,0.00028219,2]
[312184601,1705683040927,-153.0,0.00028219,2]
[312184602,1705683040936,-153.0,0.00028219,2]
[312184603,1705683040947,-153.0,0.00028219,2]
[312184604,1705683040957,-220.77218194,0.00028351,4]
[312184605,1705683040966,-5000.0,0.00028352,5]
[312184606,1705683040976,-7982.11314676,0.00028352,4]
[312184607,1705683040985,-56504.44097253,0.00028352,4]
[312184608,1705683040994,-5000.0,0.00028352,5]
[312184609,1705683041003,-5000.0,0.00028352,5]
[312184610,1705683041015,-14934.25249343,0.00028352,4]
[312184611,1705683041024,-167.65388,0.00028413,2]
[312184612,1705683041034,-189.73290036,0.00028492,2]
[312184613,1705683041043,-500.0,0.00028493,2]
[312184614,1705683041052,-375.78406185,0.00028493,2]
[312184615,1705683041063,-500.0,0.00028493,2]
[312184616,1705683041077,-500.0,0.00028493,2]
[312184617,1705683041090,-500.0,0.00028493,2]
[312184618,1705683041103,-628.4,0.00028493,2]
[312184619,1705683041115,-1069.01,0.00028493,2]
[312184620,1705683041126,-574.17,0.00028493,2]
[312184621,1705683041137,-500.0,0.00028493,2]
[312184622,1705683041150,-500.0,0.00028493,2]
[312184623,1705683041164,-1625.91,0.00028493,2]
[312184624,1705683041176,-500.0,0.00028493,2]
[312184626,1705683041188,-503.61,0.00028493,2]
[312184628,1705683041200,-500.0,0.00028493,2]
[312184629,1705683041214,-500.0,0.00028493,2]
[312184632,1705683041225,-616.62,0.00028493,2]
[312184633,1705683041235,-840.94,0.00028493,2]
[312184635,1705683041247,-500.0,0.00028493,2]
[312184637,1705683041263,-500.0,0.00028493,2]
[312184639,1705683041276,-500.0,0.00028493,2]
[312184641,1705683041287,-500.0,0.00028493,2]
[312184644,1705683041299,-937.4,0.00028493,2]
[312184646,1705683041312,-500.0,0.00028493,2]
[312184648,1705683041325,-500.0,0.00028493,2]
[312184650,1705683041335,-618.13,0.00028493,2]
[312184652,1705683041345,-500.0,0.00028493,2]
[312184655,1705683041358,-641.85,0.00028493,2]
[312184657,1705683041371,-723.91,0.00028493,2]
[312184659,1705683041383,-3128.69,0.00028493,2]
[312184661,1705683041396,-6323.53,0.00028493,2]
[312184663,1705683041409,-3238.26,0.00028493,2]
[312184665,1705683041420,-796.86,0.00028493,2]
[312184667,1705683041433,-1382.89,0.00028493,2]
[312184670,1705683041446,-653.13,0.00028493,2]
[312184672,1705683041458,-185.20580623,0.00028493,2]
[312184673,1705683041471,-2456.14,0.00028493,2]
[312184674,1705683041484,-8378.99,0.00028493,2]
[312184675,1705683041497,-11697.4,0.00028493,2]
[312184676,1705683041514,-541.69,0.00028493,2]
[312184677,1705683041527,-713.7,0.00028493,2]
[312184678,1705683041538,-1098.42,0.00028493,2]
[312184679,1705683041548,-500.0,0.00028493,2]
[312184680,1705683041558,-1294.79,0.00028493,2]
[312184681,1705683041570,-973.99,0.00028493,2]
[312184682,1705683041581,-2995.83,0.00028493,2]
[312184683,1705683041594,-500.0,0.00028493,2]
[312184684,1705683041605,-617.02,0.00028493,2]
[312184685,1705683041618,-505.34,0.00028493,2]
[312184686,1705683041629,-6598.52603834,0.00028666,2]
[312184687,1705683041643,-1142.12733566,0.00028765,2]
[312184688,1705683041655,-1687.96390295,0.00028765,2]
[312184689,1705683041665,-668.7715591,0.00028766,2]
[312184690,1705683041676,-500.0,0.00028767,2]
[312184691,1705683041687,-500.0,0.00028767,2]
[312184692,1705683041698,-500.0,0.00028767,2]
[312184693,1705683041709,-500.0,0.00028767,2]
[312184694,1705683041720,-628.4,0.00028767,2]
[312184695,1705683041731,-1069.01,0.00028767,2]
[312184696,1705683041742,-574.17,0.00028767,2]
[312184697,1705683041753,-500.0,0.00028767,2]
[312184698,1705683041767,-500.0,0.00028767,2]
[312184699,1705683041778,-1625.91,0.00028767,2]
[312184700,1705683041790,-500.0,0.00028767,2]
[312184701,1705683041801,-503.61,0.00028767,2]
[312184702,1705683041812,-500.0,0.00028767,2]
[312184703,1705683041823,-500.0,0.00028767,2]
[312184704,1705683041833,-616.62,0.00028767,2]
[312184705,1705683041844,-840.94,0.00028767,2]
[312184706,1705683041855,-500.0,0.00028767,2]
[312184707,1705683041867,-500.0,0.00028767,2]
[312184708,1705683041877,-500.0,0.00028767,2]
[312184709,1705683041889,-937.4,0.00028767,2]
[312184710,1705683041900,-500.0,0.00028767,2]
[312184711,1705683041911,-500.0,0.00028767,2]
[312184712,1705683041922,-618.13,0.00028767,2]
[312184713,1705683041932,-500.0,0.00028767,2]
[312184714,1705683041944,-641.85,0.00028767,2]
[312184715,1705683041954,-723.91,0.00028767,2]
[312184716,1705683041966,-3128.69,0.00028767,2]
[312184717,1705683041977,-6323.53,0.00028767,2]
[312184718,1705683041987,-3238.26,0.00028767,2]
[312184719,1705683041999,-796.86,0.00028767,2]
[312184720,1705683042011,-1382.89,0.00028767,2]
[312184721,1705683042021,-653.13,0.00028767,2]
[312184722,1705683042032,-2456.14,0.00028767,2]
[312184723,1705683042042,-8378.99,0.00028767,2]
[312184724,1705683042053,-11697.4,0.00028767,2]
[312184725,1705683042064,-541.69,0.00028767,2]
[312184726,1705683042077,-713.7,0.00028767,2]
[312184727,1705683042161,-1098.42,0.00028767,2]
[312184728,1705683042194,-500.0,0.00028767,2]
[312184729,1705683042203,-1294.79,0.00028767,2]
[312184730,1705683042213,-973.99,0.00028767,2]
[312184731,1705683042223,-2995.83,0.00028767,2]
[312184732,1705683042233,-590.64,0.00028767,2]
[312184733,1705683042243,-617.02,0.00028767,2]
[312184734,1705683042252,-505.34,0.00028767,2]
[312184735,1705683042264,-150.0,0.000288,2]
[312184736,1705683042272,-103739.95438307,0.0002888,2]
[312184737,1705683042281,-305.51246618,0.0002888,2]
[312184738,1705683042291,-763.6737386,0.0002888,2]
[312184739,1705683042300,-261.40839953,0.0002888,2]
[312184740,1705683042309,-3215.46147441,0.0002888,2]
[312184741,1705683042318,-481.60044733,0.0002888,2]
[312184742,1705683042327,-300.0,0.0002888,2]
[312184743,1705683042337,-155.0,0.00028939,2]
[312184745,1705683042346,-154.95351395,0.00028939,2]
[312184746,1705683042356,-155.0,0.00028939,2]
[312184748,1705683042365,-266.37190097,0.00028939,2]
[312184749,1705683042374,-250.6878483,0.00028939,2]
[312184751,1705683042383,-155.02325349,0.00028939,2]
[312184752,1705683042392,-155.27906941,0.0002894,2]
[312184754,1705683042402,-2037.3106961,0.0002894,2]
[312184755,1705683042411,-298.17043288,0.0002894,2]
[312184756,1705683042420,-154.86062544,0.00029,2]
[312184758,1705683042429,-312.4212651,0.00029,2]
[312184760,1705683042439,-3215.63352838,0.00029,2]
[312184761,1705683042449,-832.47642224,0.00029,2]
[312184762,1705683042457,-2036.31691242,0.00029,2]
[312184763,1705683042467,-1000.0,0.00029,29]
[312184764,1705683042477,-1879.41245692,0.00029,2]
[312184765,1705683042487,-163.0,0.00029011,2]
[312184766,1705683042497,-1480.58047563,0.00029039,3]
[312184767,1705683042508,-155.57753322,0.00029039,2]
[312184768,1705683042518,-322.56037203,0.0002904,2]
[312184770,1705683042528,-500.0,0.00029041,2]
[312184772,1705683042537,-500.0,0.00029041,2]
[312184774,1705683042546,-500.0,0.00029041,2]
[312184777,1705683042556,-628.4,0.00029041,2]
[312184780,1705683042566,-1069.01,0.00029041,2]
[312184783,1705683042576,-545.6602699,0.00029041,2]
[312184786,1705683042585,-500.0,0.00029041,2]
[312184790,1705683042595,-1625.91,0.00029041,2]
[312184792,1705683042604,-604.21531739,0.00029041,2]
[312184796,1705683042615,-503.61,0.00029041,2]
[312184798,1705683042624,-500.0,0.00029041,2]
[312184802,1705683042635,-410.76395448,0.00029041,2]
[312184806,1705683042645,-616.62,0.00029041,2]
[312184811,1705683042655,-840.94,0.00029041,2]
[312184816,1705683042664,-500.0,0.00029041,2]
[312184821,1705683042673,-500.0,0.00029041,2]
[312184825,1705683042682,-500.0,0.00029041,2]
[312184830,1705683042692,-937.4,0.00029041,2]
[312184833,1705683042701,-500.0,0.00029041,2]
[312184838,1705683042710,-500.0,0.00029041,2]
[312184842,1705683042720,-618.13,0.00029041,2]
[312184847,1705683042729,-500.0,0.00029041,2]
[312184850,1705683042739,-641.85,0.00029041,2]
[312184852,1705683042747,-723.91,0.00029041,2]
[312184855,1705683042759,-3128.69,0.00029041,2]
[312184858,1705683042769,-6323.53,0.00029041,2]
[312184861,1705683042779,-3238.26,0.00029041,2]
[312184865,1705683042788,-796.86,0.00029041,2]
[312184867,1705683042797,-1382.89,0.00029041,2]
[312184868,1705683042807,-653.13,0.00029041,2]
[312184870,1705683042816,-2456.14,0.00029041,2]
[312184871,1705683042825,-8378.99,0.00029041,2]
[312184872,1705683042834,-11697.4,0.00029041,2]
[312184873,1705683042843,-541.69,0.00029041,2]
[312184875,1705683042852,-713.7,0.00029041,2]
[312184877,1705683042861,-1098.42,0.00029041,2]
[312184879,1705683042871,-500.0,0.00029041,2]
[312184881,1705683042880,-1294.79,0.00029041,2]
[312184883,1705683042889,-973.99,0.00029041,2]
[312184885,1705683042898,-2995.83,0.00029041,2]
[312184886,1705683042907,-617.02,0.00029041,2]
[312184887,1705683042916,-505.34,0.00029041,2]
[312184888,1705683042926,-33167.37161834,0.00029216,2]
[312184889,1705683042935,-620.10459146,0.00029263,2]
[312184890,1705683042944,-500.0,0.00029315,2]
[312184891,1705683042953,-500.0,0.00029315,2]
[312184892,1705683042962,-500.0,0.00029315,2]
[312184893,1705683042972,-628.4,0.00029315,2]
[312184894,1705683042982,-1069.01,0.00029315,2]
[312184895,1705683042992,-500.0,0.00029315,2]
[312184896,1705683043001,-1625.91,0.00029315,2]
[312184897,1705683043015,-503.61,0.00029315,2]
[312184898,1705683043025,-500.0,0.00029315,2]
[312184899,1705683043035,-616.62,0.00029315,2]
[312184900,1705683043044,-840.94,0.00029315,2]
[312184901,1705683043053,-560.05355155,0.00029315,2]
[312184902,1705683043062,-500.0,0.00029315,2]
[312184903,1705683043071,-500.0,0.00029315,2]
[312184904,1705683043081,-937.4,0.00029315,2]
[312184905,1705683043090,-500.0,0.00029315,2]
[312184906,1705683043100,-500.0,0.00029315,2]
[312184907,1705683043109,-618.13,0.00029315,2]
[312184908,1705683043118,-500.0,0.00029315,2]
[312184909,1705683043127,-641.85,0.00029315,2]
[312184910,1705683043137,-3128.69,0.00029315,2]
[312184911,1705683043146,-723.91,0.00029315,2]
[312184912,1705683043155,-6323.53,0.00029315,2]
[312184913,1705683043164,-3238.26,0.00029315,2]
[312184914,1705683043174,-796.86,0.00029315,2]
[312184915,1705683043184,-1382.89,0.00029315,2]
[312184916,1705683043193,-653.13,0.00029315,2]
[312184917,1705683043202,-2456.14,0.00029315,2]
[312184918,1705683043211,-8378.99,0.00029315,2]
[312184919,1705683043220,-11697.4,0.00029315,2]
[312184920,1705683043230,-541.69,0.00029315,2]
[312184921,1705683043239,-713.7,0.00029315,2]
[312184922,1705683043249,-1098.42,0.00029315,2]
[312184923,1705683043259,-500.0,0.00029315,2]
[312184924,1705683043269,-1294.79,0.00029315,2]
[312184926,1705683043278,-973.99,0.00029315,2]
[312184928,1705683043287,-2995.83,0.00029315,2]
[312184930,1705683043297,-617.02,0.00029315,2]
[312184932,1705683043307,-153.0,0.00029315,2]
[312184934,1705683043316,-153.0,0.00029315,2]
[312184936,1705683043325,-153.0,0.00029315,2]
[312184938,1705683043335,-153.0,0.00029315,2]
[312184940,1705683043344,-223.0680379,0.00029315,2]
[312184942,1705683043353,-153.0,0.00029315,2]
[312184944,1705683043363,-199.0432224,0.00029315,2]
[312184945,1705683043372,-153.0,0.00029315,2]
[312184946,1705683043381,-153.0,0.00029315,2]
[312184947,1705683043390,-153.0,0.00029315,2]
[312184948,1705683043400,-153.0,0.00029315,2]
[312184949,1705683043408,-199.0432224,0.00029315,2]
[312184950,1705683043417,-153.0,0.00029315,2]
[312184951,1705683043427,-153.0,0.00029315,2]
[312184952,1705683043436,-153.0,0.00029315,2]
[312184953,1705683043445,-199.0432224,0.00029315,2]
[312184954,1705683043454,-199.0432224,0.00029315,2]
[312184955,1705683043463,-153.0,0.00029315,2]
[312184956,1705683043473,-199.0432224,0.00029315,2]
[312184957,1705683043482,-153.0,0.00029315,2]
[312184959,1705683043492,-199.0432224,0.00029315,2]
[312184961,1705683043500,-199.0432224,0.00029315,2]
[312184963,1705683043512,-153.0,0.00029315,2]
[312184965,1705683043522,-199.0432224,0.00029315,2]
[312184967,1705683043531,-2727.01,0.00029498,2]
[312184969,1705683043539,-2727.01,0.00029498,2]
[312184971,1705683043549,-22008.543643,0.000295,30]
[312184972,1705683043558,-500.0,0.00029589,2]
[312184974,1705683043568,-500.0,0.00029589,2]
[312184976,1705683043577,-500.0,0.00029589,2]
[312184978,1705683043586,-628.4,0.00029589,2]
[312184980,1705683043595,-1069.01,0.00029589,2]
[312184982,1705683043605,-500.0,0.00029589,2]
[312184983,1705683043614,-1625.91,0.00029589,2]
[312184985,1705683043623,-503.61,0.00029589,2]
[312184987,1705683043634,-263.91846683,0.00029589,2]
[312184989,1705683043643,-616.62,0.00029589,2]
[312184991,1705683043653,-840.94,0.00029589,2]
[312184993,1705683043662,-500.0,0.00029589,2]
[312184995,1705683043671,-500.0,0.00029589,2]
[312184997,1705683043681,-937.4,0.00029589,2]
[312184999,1705683043690,-500.0,0.00029589,2]
[312185001,1705683043700,-500.0,0.00029589,2]
[312185003,1705683043709,-618.13,0.00029589,2]
[312185005,1705683043719,-500.0,0.00029589,2]
[312185007,1705683043728,-641.85,0.00029589,2]
[312185009,1705683043737,-3128.69,0.00029589,2]
[312185011,1705683043746,-723.91,0.00029589,2]
[312185013,1705683043755,-6323.53,0.00029589,2]
[312185015,1705683043767,-3238.26,0.00029589,2]
[312185017,1705683043777,-796.86,0.00029589,2]
[312185019,1705683043787,-1382.89,0.00029589,2]
[312185021,1705683043796,-653.13,0.00029589,2]
[312185023,1705683043806,-2456.14,0.00029589,2]
[312185025,1705683043815,-8378.99,0.00029589,2]
[312185027,1705683043824,-11697.4,0.00029589,2]
[312185029,1705683043833,-541.69,0.00029589,2]
[312185031,1705683043843,-713.7,0.00029589,2]
[312185033,1705683043852,-1098.42,0.00029589,2]
[312185035,1705683043861,-500.0,0.00029589,2]
[312185037,1705683043870,-1294.79,0.00029589,2]
[312185039,1705683043878,-973.99,0.00029589,2]
[312185041,1705683043887,-2995.83,0.00029589,2]
[312185043,1705683043897,-617.02,0.00029589,2]
[312185045,1705683043906,-350.0,0.00029589,2]
[312185047,1705683043915,-350.0,0.00029589,2]
[312185049,1705683043924,-153.0,0.00029589,2]
[312185052,1705683043935,-153.0,0.00029589,2]
[312185053,1705683043944,-153.0,0.00029589,2]
[312185055,1705683043954,-153.0,0.00029589,2]
[312185057,1705683043963,-500.0,0.00029863,2]
[312185060,1705683043973,-500.0,0.00029863,2]
[312185062,1705683043983,-500.0,0.00029863,2]
[312185063,1705683043991,-628.4,0.00029863,2]
[312185065,1705683044001,-1069.01,0.00029863,2]
[312185067,1705683044011,-500.0,0.00029863,2]
[312185069,1705683044020,-1625.91,0.00029863,2]
[312185071,1705683044029,-503.61,0.00029863,2]
[312185073,1705683044038,-616.62,0.00029863,2]
[312185075,1705683044047,-840.94,0.00029863,2]
[312185077,1705683044056,-500.0,0.00029863,2]
[312185079,1705683044065,-537.43775786,0.00029863,2]
[312185081,1705683044075,-937.4,0.00029863,2]
[312185083,1705683044085,-500.0,0.00029863,2]
[312185085,1705683044094,-500.0,0.00029863,2]
[312185087,1705683044103,-618.13,0.00029863,2]
[312185089,1705683044112,-500.0,0.00029863,2]
[312185091,1705683044121,-641.85,0.00029863,2]
[312185093,1705683044131,-3128.69,0.00029863,2]
[312185095,1705683044140,-723.91,0.00029863,2]
[312185097,1705683044149,-6323.53,0.00029863,2]
[312185099,1705683044159,-3238.26,0.00029863,2]
[312185101,1705683044168,-796.86,0.00029863,2]
[312185103,1705683044178,-1382.89,0.00029863,2]
[312185105,1705683044188,-653.13,0.00029863,2]
[312185107,1705683044198,-2456.14,0.00029863,2]
[312185109,1705683044208,-8378.99,0.00029863,2]
[312185111,1705683044220,-11697.4,0.00029863,2]
[312185113,1705683044229,-541.69,0.00029863,2]
[312185115,1705683044240,-713.7,0.00029863,2]
[312185117,1705683044249,-1098.42,0.00029863,2]
[312185119,1705683044260,-500.0,0.00029863,2]
[312185128,1705683044269,-1294.79,0.00029863,2]
[312185130,1705683044352,-973.99,0.00029863,2]
[312185132,1705683044365,-2995.83,0.00029863,2]
[312185134,1705683044375,-617.02,0.00029863,2]
[312185136,1705683044384,-5000.0,0.00029863,2]
[312185137,1705683044393,-1206.23882079,0.00029863,2]
[312185138,1705683044402,-671.11039343,0.000299,2]
[312185139,1705683044411,-1384.73231582,0.00029999,2]
[312185140,1705683044420,-162.90283469,0.00029999,10]
[312185141,1705683044430,-243.97478798,0.0003,4]
[312185142,1705683044439,-30319.07639528,0.0003,2]
[312185143,1705683044448,-30479.54764278,0.0003,3]
[312185144,1705683044458,-230.43340321,0.0003,4]
[312185145,1705683044467,-154.87609912,0.0003,2]
[312185146,1705683044477,-464.33375401,0.0003,2]
[312185147,1705683044485,-538769.2093836,0.0003,30]
[312185148,1705683044494,-1000.0,0.0003,30]
[312185149,1705683044503,-18360.9052006,0.0003,2]
[312185150,1705683044514,-121755.97098342,0.0003,2]
[312185155,1705683044589,-2727.01,0.00029498,2]
[312185157,1705683044599,-89157.55774561,0.0003,2]
[312185179,1705683044831,-500.0,0.00027397,2]
[312185181,1705683044840,-156.54004736,0.00028351,4]
[312185183,1705683044849,-202.97,0.00029011,2]
[312185185,1705683044858,-505.34,0.00029315,2]
[312185187,1705683044867,-2680.64995264,0.00029498,2]
[312185189,1705683044878,-46.36004736,0.00029498,2]
[312185191,1705683044887,-2727.01,0.00029498,2]
[312185193,1705683044896,-1382.10815376,0.00029498,2]
[312185195,1705683044907,-1344.90184624,0.00029498,2]
[312185197,1705683044916,-2727.01,0.00029498,2]
[312185199,1705683044925,-2727.01,0.00029498,2]
[312185201,1705683044934,-2727.01,0.00029498,2]
[312185203,1705683044943,-2727.01,0.00029498,2]
[312185205,1705683044952,-505.34,0.00029589,2]
[312185207,1705683044961,-505.34,0.00029863,2]
[312185209,1705683044970,-11885.32504546,0.0003,2]
[312185215,1705683045018,-107281.28921606,0.0003,2]
[312185217,1705683045030,-2809.13352804,0.0003,2]
[312185220,1705683045044,-37257.34577317,0.0003,2]
[312185222,1705683045055,-525.15965505,0.0003,2]
[312185534,1705683046586,-500.0,0.00027397,2]
[312185536,1705683046595,-500.0,0.00027397,2]
[312185539,1705683046605,-500.0,0.00027397,2]
[312185542,1705683046617,-195.2,0.00027671,2]
[312185556,1705683046684,-304.8,0.00027671,2]
[312185559,1705683046693,-195.2,0.00027671,2]
[312185562,1705683046705,-304.8,0.00027671,2]
[312185565,1705683046715,-500.0,0.00027945,2]
[312185569,1705683046724,-500.0,0.00027945,2]
[312185571,1705683046734,-303.75639545,0.0002835,2]
[312185576,1705683046743,-199.0432224,0.00029315,2]
[312185579,1705683046752,-1782.72879621,0.0003,2]
[312185585,1705683046766,-848.28,0.0003,2]
[312185612,1705683046859,-500.0,0.00028219,2]
[312185616,1705683046868,-3334.9,0.0002999,3]
[312185619,1705683046877,-3469.41025429,0.0003,2]
[312190443,1705684052363,-296.75355326,0.00024991,2]
[312190643,1705684234338,-265.089,0.00024985,5]
[312190645,1705684234351,-2442.33662247,0.00024985,5]
[312190647,1705684234361,-36946.17544842,0.00024985,2]
[312190649,1705684234371,-1354.10271366,0.00024991,5]
[312190651,1705684234381,-189.73290036,0.00024997,2]
[312190653,1705684234391,-546.10323979,0.00024998,2]
[312190654,1705684234401,-6292.0581187,0.00025,2]
[312190656,1705684234410,-497.46838571,0.00025148,5]
[312190658,1705684234419,-250.0,0.00025214,2]
[312190660,1705684234429,-200.0,0.00026243,15]
[312190662,1705684234438,-1869.78,0.00026463,3]
[312190664,1705684234447,-154.82968734,0.00026473,2]
[312190666,1705684234457,-50000.0,0.00026474,2]
[312190668,1705684234469,-1142.12733566,0.00026476,2]
[312190670,1705684234478,-303.01578227,0.00026476,2]
[312190672,1705684234487,-668.7715591,0.00026477,2]
[312190674,1705684234496,-50000.0,0.00026478,2]
[312190676,1705684234505,-337.20341221,0.00027,2]
[312190677,1705684234514,-2642.82763636,0.00027395,7]
[312190679,1705684234524,-319.80242304,0.00027395,2]
[312190680,1705684234533,-155.57753322,0.00027395,2]
[312190682,1705684234543,-322.56037203,0.00027395,2]
[312190684,1705684234553,-298.17043288,0.00027395,2]
[312190685,1705684234562,-155.02325349,0.00027395,2]
[312190687,1705684234572,-154.95351395,0.00027395,2]
[312190689,1705684234581,-266.37190097,0.00027395,2]
[312190691,1705684234591,-2037.3106961,0.00027395,2]
[312190693,1705684234600,-155.0,0.00027395,2]
[312190695,1705684234609,-155.27906941,0.00027395,2]
[312190697,1705684234618,-155.0,0.00027395,2]
[312190709,1705684234734,-500.0,0.00027397,2]
[312190712,1705684234751,-500.0,0.00027397,2]
[312190714,1705684234762,-500.0,0.00027397,2]
[312190716,1705684234772,-500.0,0.00027397,2]
[312190717,1705684234783,-500.0,0.00027397,2]
[312190719,1705684234792,-243.63065264,0.00027397,2]
[312190721,1705684234803,-546.65,0.00027397,2]
[312190723,1705684234813,-500.0,0.00027397,2]
[312190725,1705684234823,-573.68,0.00027397,2]
[312190727,1705684234834,-635.29,0.00027397,2]
[312190729,1705684234844,-500.0,0.00027397,2]
[312190731,1705684234854,-500.0,0.00027397,2]
[312190733,1705684234863,-500.0,0.00027397,2]